Cogmind - Beta 16 @@@ ROGUE MODE // 2025.10.31 @ 20:44:33 Player: pointone Result: Destroyed by CN-KE8(R) with Subdweller Machine Gun Performance ------------- Evolutions (0) 0 Regions Visited (2) 400 Robots Destroyed (24) 120 Value Destroyed (546) 546 Prototype IDs (15) 300 Alien Tech Used (0) 0 Bonus (0) 0 TOTAL SCORE: 1366 Bonus ------- None Cogmind --------- Core Integrity 0/250 Matter 282/300 Energy 150/150 System Corruption 1% Temperature Cool (26) Movement Walking (190) Ox1 Location -10/Subcaves Parts ------- > --- POWER (1) -------- Light Angular Momentum Engine (fused) > --- PROPULSION (2) --- Carbon-fiber Leg Carbon-fiber Leg > --- UTILITY (2) ------ Light Humpback > --- WEAPON (2) ------- Beamcaster Barrage Gun > --- INVENTORY (25) --- Neutrino Core Arachnoskeleton Subdweller Monowheel Subdweller Monowheel Improved Heat Sink Improved Heat Sink Improved Heat Sink High-capacity Storage Unit High-capacity Storage Unit Weight Redist. System Subdweller Optics Signal Interpreter Improved Terrain Scanner Terrain Scan Processor Armor Integrity Analyzer Scrap Shield Beamcaster Battle Rifle Battle Cannon Scrap Shield Fragment (48) Scrap Shield Fragment (47) Peak State ------------ > --- POWER ------------ Light Angular Momentum Engine > --- PROPULSION ------- Carbon-fiber Leg Carbon-fiber Leg > --- UTILITY ---------- Light Humpback > --- WEAPON ----------- Beamcaster Barrage Gun > --- INVENTORY -------- Neutrino Core Arachnoskeleton Subdweller Monowheel Subdweller Monowheel Improved Heat Sink Improved Heat Sink Improved Heat Sink High-capacity Storage Unit High-capacity Storage Unit Weight Redist. System Subdweller Optics Signal Interpreter Improved Terrain Scanner Terrain Scan Processor Armor Integrity Analyzer Scrap Shield Beamcaster Battle Rifle Battle Cannon Scrap Shield Fragment Scrap Shield Fragment [Rating: 28] Favorites ----------- Power Light Angular Momentum Engine Engine Light Angular Momentum Engine Power Core Neutrino Core Propulsion Carbon-fiber Leg Leg Carbon-fiber Leg Wheel Wheel Utility High-capacity Storage Unit Device Weight Redist. System Storage High-capacity Storage Unit Weapon Subdweller Machine Gun Energy Gun Medium Laser Ballistic Gun Subdweller Machine Gun Ballistic Cannon Battle Cannon Build | -11 -10 -10 ------- Run | Yrd Mat Sub Slots Evolved . | . . . Power . | . . . Propulsion . | . . . Utility . | . . . Weapon . | . . . Parts Attached 27 | 7 6 14 Power 6 | 2 1 3 Engine 5 | 2 1 2 Core 1 | . . 1 Reactor . | . . . Propulsion 7 | 2 1 4 Treads . | . . . Leg 2 | . . 2 Wheel 5 | 2 1 2 Hover . | . . . Flight . | . . . Utility 4 | 1 1 2 Device 2 | 1 . 1 Storage 2 | . 1 1 Processor . | . . . Hackware . | . . . Protection . | . . . Artifact . | . . . Weapon 10 | 2 3 5 Energy Gun 3 | 1 1 1 Energy Cannon . | . . . Ballistic Gun 5 | 1 1 3 Ballistic Cannon 2 | . 1 1 Launcher . | . . . Special Weapon . | . . . Impact Weapon . | . . . Slashing Weapon . | . . . Piercing Weapon . | . . . Special Melee Weapon . | . . . Unidentified Prototypes . | . . . Corrupted Parts 1 | 1 . . System Corruption 1 | 1 . . Parts Lost 9 | 1 3 5 Power 3 | 1 1 1 Propulsion 4 | . 1 3 Utility . | . . . Weapon 2 | . 1 1 Highest Loss Streak 5 | 1 2 5 To Critical Strikes . | . . . Average Backups 14 | 1 9 17 Power 1 | . 1 . Propulsion 1 | . . 2 Utility 8 | . 5 10 Weapon 2 | 1 1 3 Tool/Special . | . . . Unused Backups 25 | . . 25 Power 1 | . . 1 Propulsion 3 | . . 3 Utility 16 | . . 16 Weapon 5 | . . 5 Tool/Special . | . . . Average Slot Usage (%) 94 | . 94 94 Engine 13 | . 13 13 Leg 17 | . . 24 Wheel 10 | . 28 3 Device 10 | . 14 9 Storage 12 | . 9 14 Energy Gun 4 | . 15 . Ballistic Gun 16 | . 4 20 Ballistic Cannon 7 | . 7 6 Peak Build Rating 28 | 8 11 28 Average Rating 17 | 3 9 21 On Entrance 6 | . 8 11 Avg Prop Armor Cover (%) . | . . . Naked Turns . | . . . Heaviest Build 62 | 7 49 62 Greatest Support 36 | 20 20 36 Greatest Overweight (x) 4 | . 2 4 Average Overweight (x) 1 | . 1 1 Largest Inventory Capacity 25 | 5 20 25 Average Capacity 19 | 5 15 21 Most Carried 24 | 3 19 24 Average Carried 16 | 1 9 20 Final Capacity 25 | 5 20 25 Final Carried 24 | 1 19 24 Class Distribution -------------------- 59% | Mutant 40% | Scavenger-Mutant Dominant Class ---------------- Mutant | -10/Materials Scavenger-Mutant | -10/Subcaves Resources | -11 -10 -10 ----------- Run | Yrd Mat Sub Matter Collected 875 | 275 228 372 Remotely . | . . . Salvage Created 661 | 69 301 291 Parts 60 | 7 29 24 Haulers Intercepted 2 | . 2 . Recyclers Shooed . | . . . Parts Field Recycled . | . . . Retrieved Matter . | . . . Parts Self-Destructed 8 | . . 8 Prevented . | . . . Parts Restored . | . . . Kills | -11 -10 -10 ------- Run | Yrd Mat Sub Combat Hostiles Destroyed 18 | 1 8 9 Guns 11 | 1 3 7 Cannons 5 | . 3 2 AOE 2 | . 2 . Classes Destroyed 7 | 2 4 1 Builder 1 | . 1 . Tunneler 1 | 1 . . Hauler 2 | . 2 . Watcher 2 | . 2 . Swarmer 8 | . 7 1 Grunt 2 | 1 1 . Subdweller 8 | . . 8 Best Kill Streak 4 | 2 4 4 Combat Bots Only 4 | 1 3 4 Max Kills in Single Turn 2 | 1 1 2 Gunslinging 1 | . . 1 Exploded 1 | . 1 . Melee . | . . . Uniques/NPCs Destroyed . | . . . Combat | -11 -10 -10 -------- Run | Yrd Mat Sub Hostile Shots Fired 91 | 10 34 47 Missed 27 | 1 16 10 Hits 64 | 9 18 37 Projectile 64 | 9 18 37 AOE 1 | . . 1 Critical Strikes 1 | . . 1 Damage Taken 1174 | 98 284 792 Core 255 | 23 32 200 Absorbed by Shields . | . . . Core Remaining (%) 90 | 90 . . Volleys Fired 79 | 10 36 33 Largest 2 | 2 2 2 Hottest 103 | 60 90 103 Shots Fired 150 | 20 66 64 Gun 123 | 20 51 52 Cannon 27 | . 15 12 Launcher . | . . . Special . | . . . Kinetic 94 | 10 22 62 Thermal 25 | . 23 2 Explosive . | . . . Electromagnetic 31 | 10 21 . Robot Hit Streak 15 | 6 7 15 Robot Miss Streak 3 | 1 3 3 Penetration Max . | . . . Secondary Targets 1 | . . 1 Max Gunslinging Chain 1 | . . 1 Shots Hit Robots 87 | 15 33 39 Core Hits 37 | 3 17 17 Critical Kills . | . . . Critical Parts Destroyed . | . . . Critical Strikes 1 | . 1 . Burn 1 | . 1 . Melee Attacks . | . . . Impact . | . . . Slashing . | . . . Piercing . | . . . Sneak Attacks . | . . . Combat Hostiles . | . . . Follow-up Attacks . | . . . Damage Inflicted 1416 | 180 586 650 Guns 1096 | 180 358 558 Cannons 211 | . 119 92 Explosions 104 | . 104 . Melee . | . . . Ramming 5 | . 5 . Kinetic 834 | 68 158 608 Thermal 324 | . 282 42 Explosive . | . . . Electromagnetic 253 | 112 141 . Impact . | . . . Slashing . | . . . Piercing . | . . . Highest Corruption 1 | 1 1 1 Average Corruption 1 | 1 1 1 Corruption Purged . | . . . Corruption Blocked . | . . . Effects 16 | . 4 12 Message Errors 7 | . 2 5 Energy Discharges 2 | . 1 1 Parts Fused 1 | . . 1 Data Loss (minor) 3 | . . 3 Data Loss (major) 1 | . . 1 Misfires 1 | . . 1 Weapon Failures 1 | . 1 . Overload Shots . | . . . Overflow Damage 40 | . 40 . Projectiles . | . . . Explosions 40 | . 40 . Melee . | . . . Knockbacks 3 | . 3 . Impact . | . . . Kinetic 3 | . 3 . Secondary . | . . . Self-Inflicted Damage 140 | . 140 . Shots 3 | . 3 . Rammed 1 | . 1 . Targets Rammed 1 | . 1 . Kicked . | . . . Crushed . | . . . Highest Temperature 90 | 88 90 26 Average Temperature 31 | 41 29 19 Received Heat Transfer 153 | 54 . 99 Siege Activations . | . . . Martial Activations . | . . . Shielding Activations . | . . . Robots Disrupted . | . . . Combat Hostiles . | . . . Robots Corrupted . | . . . Combat Hostiles . | . . . Parts Fried . | . . . Impact Corruptions . | . . . Robots Melted . | . . . Combat Hostiles . | . . . Parts Melted 2 | . 2 . Heat Transferred 766 | . 692 74 Parts Sabotaged . | . . . Parts Stolen . | . . . Parts Stripped . | . . . Power Chain Reactions 3 | . 3 . Alert | -11 -10 -10 ------- Run | Yrd Mat Sub Maximum Alert Level . | . . . Low Security (%) 100 | 100 100 . Level 1 . | . . . Level 2 . | . . . Level 3 . | . . . Level 4 . | . . . Level 5 . | . . . High Security . | . . . Max Security . | . . . Peak Influence 175 | 20 175 . Initial 9 | . 9 . Average 94 | 4 108 . Influence Increases 420 | 25 375 20 Destroy 0b10 Robot/C 200 | 20 160 20 Destroy 0b10 Robot/NC 30 | 5 25 . Destroy Leader 38 | . 38 . Successful Hack 20 | . 20 . Disable Machine 45 | . 45 . Destroy Structure 42 | . 42 . Lose Combat Pursuer 45 | . 45 . Influence Decreases 420 | 10 281 129 Entered New Map 59 | . 6 53 Time Decay 315 | 10 245 60 Lost Part 46 | . 30 16 Squads Dispatched 1 | . 1 . Investigation 1 | . 1 . Extermination . | . . . Reinforcement . | . . . Assault . | . . . Garrison . | . . . Intercept . | . . . Searches Triggered . | . . . Construction Impeded . | . . . Haulers Reinforced . | . . . Active Scanning Responses . | . . . Cargo Convoy Interrupts . | . . . Stealth | -11 -10 -10 --------- Run | Yrd Mat Sub Distress Signals . | . . . Communications Jammed . | . . . Distress Signals . | . . . Times Spotted 32 | 1 14 17 Peak Tracking Total 8 | 1 3 8 Tactical Retreats 2 | . 2 . Traps | -11 -10 -10 ------- Run | Yrd Mat Sub Traps Triggered 1 | . 1 . Indirectly . | . . . Trap Hack Attempts . | . . . Triggered . | . . . Disarmed . | . . . Reprogrammed . | . . . Reused . | . . . Traps Extracted . | . . . Installed . | . . . Triggered . | . . . Machines | -11 -10 -10 ---------- Run | Yrd Mat Sub Machines Disabled 4 | . 3 1 Max in Single Turn 2 | . 2 1 Machines Repaired . | . . . Machines Dismantled . | . . . Machines Sabotaged . | . . . Overloaded Fab Kills . | . . . Hacking | -11 -10 -10 --------- Run | Yrd Mat Sub Machines Accessed 6 | . 5 1 Terminals 3 | . 3 . Fabricators . | . . . Repair Stations . | . . . Recycling Units 2 | . 2 . Scanalyzers . | . . . Garrison Access . | . . . Total Hacks 23 | . 14 9 Successful 18 | . 9 9 Failed 5 | . 5 . Catastrophic . | . . . Database Lockouts . | . . . Manual 2 | . 2 . Terminals 10 | . 10 . Fabricators . | . . . Repair Stations . | . . . Recycling Units 4 | . 4 . Scanalyzers . | . . . Garrison Access . | . . . Terminal Hacks 15 | . 6 9 Record 11 | . 3 8 Prototype ID Bank 1 | . 1 . Alert Level 1 | . 1 . Dispatch Records 1 | . 1 . Proto ID Catalog 1 | . . 1 Fabricator Hacks . | . . . Repair Station Hacks . | . . . Recycling Unit Hacks 3 | . 3 . Report Inventory 2 | . 2 . Retrieve Components 1 | . 1 . Scanalyzer . | . . . Garrison Access Hacks . | . . . Unauthorized Hacks . | . . . Terminals . | . . . Fabricators . | . . . Repair Stations . | . . . Recycling Units . | . . . Scanalyzers . | . . . Garrison Access . | . . . Data Cores Recovered . | . . . Used . | . . . Hacking Detections 5 | . 5 . Full Trace Events . | . . . Feedback Events . | . . . Feedback Blocked . | . . . Robot Schematics Acquired . | . . . Robots Built . | . . . Authchips . | . . . Time . | . . . Total Robot Build Rating . | . . . Part Schematics Acquired . | . . . Parts Built . | . . . Authchips . | . . . Time . | . . . Total Part Build Rating . | . . . Part Studies Acquired . | . . . Parts Repaired . | . . . Time . | . . . Parts Recycled . | . . . Recycled Matter . | . . . Retrieved Matter . | . . . Retrieved Components 9 | . 9 . Parts Scanalyzed . | . . . Part Schematics Acquired . | . . . Parts Damaged . | . . . Bothacking | -11 -10 -10 ------------ Run | Yrd Mat Sub Used RIF Installer . | . . . Robots Hacked . | . . . Non-combat . | . . . Combat . | . . . Robot Hacks Applied . | . . . Relay Couplers Released . | . . . Fabnet Peak Effective % . | . . . Robots Rewired . | . . . Allies Hacked . | . . . Hacks Repelled . | . . . Allies | -11 -10 -10 -------- Run | Yrd Mat Sub Total Allies . | . . . Largest Group . | . . . Highest-Rated Group . | . . . Highest-Rated Ally . | . . . Total Orders . | . . . Ally Attacks . | . . . Total Damage . | . . . Kills . | . . . Allies Corrupted . | . . . Allies Melted . | . . . Intel | -11 -10 -10 ------- Run | Yrd Mat Sub Active Infowar (turns) 764 | 4 574 186 Terrain 764 | 4 574 186 Robot Analysis Total . | . . . Derelict Logs Recovered . | . . . Drone Launches . | . . . Drone Recoveries . | . . . Exploration | -11 -10 -10 ------------- Run | Yrd Mat Sub Turns Passed 2151 | 94 574 1483 Spaces Moved 1213 | 71 416 726 Core 17 | 17 . . Treads . | . . . Legs 615 | . . 615 Wheels 581 | 54 416 111 Hover . | . . . Flight . | . . . Fastest Speed 50 | 50 80 110 Average Speed 146 | 72 101 179 Slowest Speed 260 | 80 110 260 Overloaded Moves . | . . . Propulsion Burnouts . | . . . Robots Hopped . | . . . Potential Cave-ins . | . . . Cave-ins Triggered . | . . . Exploration Rate (%) 34 | 7 68 29 Regions Visited 2 Branch Regions 1 Pre-discovered Areas 1 | . . 1 Known Exits Taken . | . . . Unknown Exits Taken 2 | 1 1 . Scrap Searched 1 | . . 1 Spaces Dug . | . . . Terrain Destroyed 43 | . 43 . Melee . | . . . Projectile . | . . . AOE 43 | . 43 . Terrain Rammed . | . . . Walls Destroyed . | . . . Machines Disabled . | . . . Actions | -11 -10 -10 --------- Run | Yrd Mat Sub Total 1456 | 95 502 859 Wait 34 | . 22 12 Move 1211 | 70 415 726 Hop . | . . . Pick Up 66 | 8 22 36 Fast Attach 3 | . . 3 Attach 17 | 7 4 6 Detach 1 | . . 1 Swap 8 | . 2 6 Drop 36 | . . 36 Fire 79 | 10 36 33 Melee . | . . . Ram 1 | . 1 . Kick . | . . . Crush . | . . . Escape Stasis . | . . . Rewire . | . . . Trap . | . . . Miscellaneous . | . . . Route ------- -11/Scrapyard -10/Materials (discovered 4 exits: [*Mat x2] / [*Min] / *Sub) -10/Subcaves History --------- Turn | Location | Event 2 | -11/Scrapyard | Met Revision 17 45 | -11/Scrapyard | Discovered new exit (range 8) 95 | -11/Scrapyard | Entered Materials 189 | -10/Materials | Discovered new exit (range 6) 307 | -10/Materials | Build established: Mutant 329 | -10/Materials | Discovered new exit (range 10) 597 | -10/Materials | Discovered new exit (range 15) 663 | -10/Materials | Discovered new exit (range 6) 669 | -10/Materials | Entered Subcaves 798 | -10/Subcaves | Ambushed by swarm of Subdwellers 798 | -10/Subcaves | Ambushed by Subdwellers from Twisted Machinery 800 | -10/Subcaves | Ambushed by Subdwellers from Twisted Machinery 822 | -10/Subcaves | Core integrity fell below 50% 855 | -10/Subcaves | Lost 4 allies 868 | -10/Subcaves | Lost 5 parts (1p3n1w) 1136 | -10/Subcaves | Build established: Scavenger-Mutant 1195 | -10/Subcaves | Core integrity fell below 20% 1635 | -10/Subcaves | Visited 4L-MR0's lab 1735 | -10/Subcaves | Found Arachnoskeleton 2003 | -10/Subcaves | Build established: Mutant 2076 | -10/Subcaves | Learned location of Zion (-7) 2076 | -10/Subcaves | Met a Zionite searching for "candidates" 2152 | -10/Subcaves | Destroyed by CN-KE8(R) with Subdweller Machine Gun Last Messages --------------- Want a larger map view with more modal windows? Or have a large enough display to fit a bigger map in exchange for smaller text? Consider selecting a different UI Layout in the option menu. 02000_ Acquired 5 matter. 02019_ System corrupted: Energy discharge (-30). 02021_ Subatomizers dissect the Sub. Optics, destroying it. 02036_ Acquired Scrap Shield Fragment. 02043_ System corrupted: Lgt. Angular Momentum Engine fused. 02047_ Subatomizers dissect the Beam Cannon. 02076_ VE-183(z): "Hey you! It's really dangerous down here, I feel that you could die at any moment. For your health and safety might I suggest a trip to Zion?" World map updated: -7/Zion. [Achievement: First Step to Greatness] Map ----- +----------------------------------------------------+ | ??####???#!&]&*"### #????# #????????????????? | | ??## #?#?##] =!!"## ##??## ##????????????????? | | #?# ###??#* !!%!#? ##??## ##????????????????? | | #??# ##??##!!]&######??## #????????????????? | | #?## ####* !%!## #???# #????????????????? | | ### & ##&[] ##??# ##????????????????? | | ## !*& &&% #??## ##????????????????? | | ?# ###! !*%* #???## #????????????????? | | ## ####&*#"### ####?# #????????????????? | | ###### #?## ## ### #????????????????? | | ##??###??#### ## #????????????????? | | #???????#?# ## #### ###????????????????? | | ##??????##?# ### #??# #??????????????????? | | ## ##?????????# ## #### #??????????????????? | | ## ##????????# ## #??????????????????? | | # ###??????##### ##?????????????????? | | # #??????????# "" ##????????????????? | | # ##??????#### "" #????????????????? | | # #?#??### "# "" #????????????????? | | ## ##??#?#"""" "##" ##????????????????? | | ?## #??## ## "" "########?????????????????? | | ?## #??# ### #########?###??????????????? | | ## #??# """ #### ### ####???????????? | | # #???# """ ## "R" #???????????? | | #???####### " "R # # ####?????????? | | #######???# @######## # ##????????? | | ## ##??# ##??????# #????????? | | #### #??# ###???????# ##????????? | | ##??## #####??# #?????????# ## #????????? | | ##????## #?????# ?????????#### ##????????? | | #??????# #?????#######???????????? ????????? | | #??????# ##????????????????????????# ???????? | | ???????# ##????????????????????????? ??????? | | ???????###?????????????????????????? ?????? | | ???????????????????????????????????? ### ????? | | ???????????????????????????????????? ##??? ???? | | ???????????????????????????????????? %##????????? | | ???????????????????????????????????? #?????????? | | ???????????????????????????????????? ?????????? | | ???????????????????????????????????? ?????????? | | ???????????????????????????????????? ?????????? | | ???????????????????????????????????? ?????????? | | ???????????????????????????????????? ?????????? | | ?????????????????????????????????????????????????? | | ?????????????????????????????????????????????????? | | ?????????????????????????????????????????????????? | | ?????????????????????????????????????????????????? | | ?????????????????????????????????????????????????? | | ?????????????????????????????????????????????????? | | ?????????????????????????????????????????????????? | +----------------------------------------------------+ Best States ------------- Heat Dissipation 25 Energy Generation 19 Energy Capacity 315 Matter Stores 300 Matter Capacity 300 Sight Range 16 Terrain Scan Range 16 Terrain Scan Density 10 Additional Mass Support 6 Evasion (%) 50 Item Schematics ----------------- None Robot Schematics ------------------ None Fabricated ------------ Nothing Repaired ---------- Nothing Studied --------- None Alien Tech Used ----------------- None Achievements -------------- A Problem For Future Me Crack Shot First Step to Greatness For Emergencies Only Librarian Loot Pinata Mistaken Identity Organ Harvest There's More Where That Came From Challenges ------------ None Game ------ Seed JunkWeightRecalibrator Manual? 0 Play Time 00:53:20 Cumulative 0.8 hours Start 2025.10.31 @ 19:40:51 End 2025.10.31 @ 20:44:33 Sessions 1 Manual Loads 0 Difficulty Rogue Special Mode None Game No. 1 Rogue 1 Adventurer 0 Explorer 0 Win Type - Total 0 Types 0/0/0/0/0/0/0/0/0/0 Lore% 0 Gallery% 1 Achievement% 1 Wizard Run 0 Options --------- Layout 1 ASCII 0 Keyboard 0 Movement Mouse Keybinds 0 Fullscreen 1 Font 48/SmallcapsGlow++ Map View 50x35 Zoom Use 0% Tactical HUD 1 Map Filters NONE Filters NONE Steam 0 RUN: bd68b4cc-c1fa-4b74-97a1-2e78134277a3